Cogmind - Beta 11 @@@ ROGUE MODE // 2022.03.25 @ 11:43:49 Player: onyhow Result: Destroyed by as-12832 with Assembled Rifle Performance ------------- Evolutions (0) 0 Regions Visited (2) 400 Robots Destroyed (18) 90 Value Destroyed (427) 427 Prototype IDs (0) 0 Alien Tech Used (0) 0 Bonus (0) 0 TOTAL SCORE: 917 Bonus ------- None Cogmind --------- Core Integrity 0/250 Matter 229/300 Energy 249/250 System Corruption 0% Temperature Cool (0) Movement Core (500) Ox9 Location -10/Mines Parts ------- > --- POWER (1) -------- Ion Engine > --- PROPULSION (2) --- (None) > --- UTILITY (2) ------ Large Storage Unit Seismic Detector > --- WEAPON (2) ------- Mining Claw > --- INVENTORY (15) --- Ion Engine Heat Sink Improved Heat Sink High-capacity Storage Unit Huge Storage Unit ECM Suite Medium Armor Plating Medium Armor Plating Medium Armor Plating Medium Armor Plating Small Laser Rocket Launcher Rocket Launcher Peak State ------------ > --- POWER ------------ Ion Engine > --- PROPULSION ------- Armored Wheel Armored Wheel > --- UTILITY ---------- Improved Heat Sink Medium Storage Unit > --- WEAPON ----------- Assault Rifle Light Assault Rifle > --- INVENTORY -------- Ion Engine Light Ion Engine Light Treads Light Treads Heat Sink Huge Storage Unit Particle Gun Grenade Launcher Datajack Mining Claw [Rating: 12] Favorites ----------- Power Ion Engine Engine Ion Engine Propulsion Light Treads Treads Light Treads Leg Aluminum Leg Wheel Armored Wheel Utility Large Storage Unit Device Seismic Detector Storage Large Storage Unit Weapon Assault Rifle Energy Gun Particle Gun Ballistic Gun Assault Rifle Launcher Rocket Launcher Slashing Weapon Mining Claw Build | -11 -10 -10 ------- Run | Scr Mat Min Slots Evolved . | . . . Power . | . . . Propulsion . | . . . Utility . | . . . Weapon . | . . . Parts Attached 31 | 6 21 4 Power 2 | 1 1 . Engine 2 | 1 1 . Core . | . . . Reactor . | . . . Propulsion 11 | 2 9 . Treads 5 | . 5 . Leg 2 | . 2 . Wheel 4 | 2 2 . Hover . | . . . Flight . | . . . Utility 11 | 1 10 . Device 3 | . 3 . Storage 8 | 1 7 . Processor . | . . . Hackware . | . . . Protection . | . . . Artifact . | . . . Weapon 7 | 2 1 4 Energy Gun 1 | . . 1 Energy Cannon . | . . . Ballistic Gun 4 | 2 1 1 Ballistic Cannon . | . . . Launcher 1 | . . 1 Special Weapon . | . . . Impact Weapon . | . . . Slashing Weapon 1 | . . 1 Piercing Weapon . | . . . Special Melee Weapon . | . . . Unidentified Prototypes . | . . . Parts Lost 8 | . 3 5 Power 1 | . 1 . Propulsion 3 | . 1 2 Utility . | . . . Weapon 4 | . 1 3 Highest Loss Streak 5 | . 2 5 To Critical Strikes . | . . . Average Slot Usage (%) 96 | . 96 97 Engine 13 | . 13 14 Treads 20 | . 19 26 Leg 4 | . 4 . Wheel 3 | . 3 . Device 11 | . 10 14 Storage 14 | . 14 14 Ballistic Gun 27 | . 27 25 Naked Turns . | . . . Heaviest Build 49 | 11 49 29 Greatest Support 40 | 32 40 40 Greatest Overweight (x) 9 | . 3 9 Average Overweight (x) . | . . . Largest Inventory Capacity 25 | 8 25 15 Average Capacity 13 | 6 13 15 Most Carried 15 | 5 15 15 Average Carried 9 | 3 8 14 Final Capacity 15 | 8 15 15 Final Carried 15 | 4 15 13 Class Distribution -------------------- 100% | Mutant Dominant Class ---------------- Mutant | -10/Materials Mutant | -10/Mines Resources | -11 -10 -10 ----------- Run | Scr Mat Min Matter Collected 719 | 181 538 . Remotely . | . . . Salvage Created 593 | . 577 16 Parts 39 | . 39 . Haulers Intercepted . | . . . Recyclers Shooed 2 | . 2 . Parts Field Recycled . | . . . Retrieved Matter . | . . . Parts Self-Destructed . | . . . Prevented . | . . . Kills | -11 -10 -10 ------- Run | Scr Mat Min Combat Hostiles Destroyed 19 | . 15 4 Melee 1 | . . 1 Guns 16 | . 15 1 AOE 2 | . . 2 Classes Destroyed 6 | . 5 1 Recycler 1 | . 1 . Operator 1 | . 1 . Watcher 1 | . 1 . Swarmer 6 | . 6 . Grunt 9 | . 9 . Assembled 4 | . . 4 Best Kill Streak 4 | . 4 3 Combat Bots Only 3 | . 3 3 Max Kills in Single Turn 2 | . 1 2 Gunslinging . | . . . Exploded 1 | . . 1 Melee 1 | . . 1 Uniques/NPCs Destroyed . | . . . Combat | -11 -10 -10 -------- Run | Scr Mat Min Damage Taken 1211 | . 678 533 Core 259 | . 145 114 Absorbed by Shields . | . . . Core Remaining (%) 100 | 100 . . Volleys Fired 76 | . 67 9 Largest 2 | . 2 2 Hottest 85 | . 40 85 Shots Fired 148 | . 133 15 Gun 145 | . 133 12 Cannon . | . . . Launcher 3 | . . 3 Special . | . . . Kinetic 143 | . 133 10 Thermal 2 | . . 2 Explosive 3 | . . 3 Electromagnetic . | . . . Robot Hit Streak 12 | . 12 4 Robot Miss Streak 3 | . 3 2 Penetration Max . | . . . Secondary Targets 1 | . 1 . Max Gunslinging Chain 1 | . 1 . Shots Hit Robots 89 | . 80 9 Core Hits 42 | . 34 8 Critical Kills 2 | . 2 . Critical Parts Destroyed 1 | . 1 . Critical Strikes 3 | . 3 . Destroy 3 | . 3 . Melee Attacks 2 | . . 2 Impact . | . . . Slashing 2 | . . 2 Piercing . | . . . Sneak Attacks . | . . . Combat Hostiles . | . . . Follow-up Attacks . | . . . Damage Inflicted 1122 | . 827 295 Guns 899 | . 827 72 Cannons . | . . . Explosions 193 | . . 193 Melee 30 | . . 30 Ramming . | . . . Kinetic 881 | . 827 54 Thermal 18 | . . 18 Explosive 193 | . . 193 Electromagnetic . | . . . Impact . | . . . Slashing 30 | . . 30 Piercing . | . . . Highest Corruption . | . . . Average Corruption . | . . . Corruption Purged . | . . . Corruption Blocked . | . . . Overload Shots . | . . . Overflow Damage . | . . . Projectiles . | . . . Explosions . | . . . Melee . | . . . Knockbacks . | . . . Impact . | . . . Kinetic . | . . . Secondary . | . . . Self-Inflicted Damage 40 | . . 40 Shots 1 | . . 1 Rammed . | . . . Targets Rammed . | . . . Kicked . | . . . Crushed . | . . . Highest Temperature 48 | . 18 48 Average Temperature 14 | . 8 26 Received Heat Transfer 274 | . 234 40 Siege Activations . | . . . Robots Corrupted . | . . . Combat Hostiles . | . . . Parts Fried . | . . . Impact Corruptions . | . . . Robots Melted . | . . . Combat Hostiles . | . . . Parts Melted . | . . . Heat Transferred 37 | . . 37 Parts Sabotaged . | . . . Parts Stolen . | . . . Parts Stripped . | . . . Power Chain Reactions . | . . . Missiles Intercepted . | . . . Alert | -11 -10 -10 ------- Run | Scr Mat Min Peak Influence 152 | . 152 60 Initial . | . . . Average 39 | . 44 5 Maximum Alert Level . | . . . Low Security (%) 100 | 100 100 100 Level 1 . | . . . Level 2 . | . . . Level 3 . | . . . Level 4 . | . . . Level 5 . | . . . High Security . | . . . Max Security . | . . . Squads Dispatched 3 | . 3 . Investigation 2 | . 2 . Extermination . | . . . Reinforcement 1 | . 1 . Assault . | . . . Garrison . | . . . Intercept . | . . . Searches Triggered . | . . . Construction Impeded . | . . . Haulers Reinforced . | . . . Active Scanning Responses . | . . . Cargo Convoy Interrupts . | . . . Stealth | -11 -10 -10 --------- Run | Scr Mat Min Distress Signals . | . . . Communications Jammed . | . . . Distress Signals . | . . . Times Spotted 36 | . 28 8 Peak Tracking Total 7 | . 4 7 Tactical Retreats 1 | . . 1 Traps | -11 -10 -10 ------- Run | Scr Mat Min Traps Triggered 4 | . 4 . Indirectly . | . . . Trap Hack Attempts . | . . . Triggered . | . . . Disarmed . | . . . Reprogrammed . | . . . Reused . | . . . Traps Extracted . | . . . Installed . | . . . Triggered . | . . . Machines | -11 -10 -10 ---------- Run | Scr Mat Min Machines Disabled 1 | . 1 . Max in Single Turn 1 | . 1 . Machines Sabotaged . | . . . Garrisons Compromised . | . . . Overloaded Fab Kills . | . . . Hacking | -11 -10 -10 --------- Run | Scr Mat Min Machines Accessed 6 | . 6 . Terminals 6 | . 6 . Fabricators . | . . . Repair Stations . | . . . Recycling Units . | . . . Scanalyzers . | . . . Garrison Access . | . . . Total Hacks 14 | . 14 . Successful 8 | . 8 . Failed 5 | . 5 . Catastrophic . | . . . Database Lockouts 1 | . 1 . Manual 10 | . 10 . Terminals 14 | . 14 . Fabricators . | . . . Repair Stations . | . . . Recycling Units . | . . . Scanalyzers . | . . . Garrison Access . | . . . Terminal Hacks 8 | . 8 . Part Schematic 1 | . 1 . Branch Access Points 2 | . 2 . Alert Level 2 | . 2 . Unreport Threat 1 | . 1 . Transport Status 1 | . 1 . Zone Layout 1 | . 1 . Fabricator Hacks . | . . . Repair Station Hacks . | . . . Recycling Unit Hacks . | . . . Scanalyzer . | . . . Garrison Access Hacks . | . . . Unauthorized Hacks . | . . . Terminals . | . . . Fabricators . | . . . Repair Stations . | . . . Recycling Units . | . . . Scanalyzers . | . . . Garrison Access . | . . . Data Cores Recovered 1 | . 1 . Used 1 | . 1 . Hacking Detections 5 | . 5 . Full Trace Events . | . . . Feedback Events . | . . . Feedback Blocked . | . . . Robot Schematics Acquired . | . . . Robots Built . | . . . Authchips . | . . . Time . | . . . Total Robot Build Rating . | . . . Part Schematics Acquired 1 | . 1 . Parts Built . | . . . Authchips . | . . . Time . | . . . Total Part Build Rating . | . . . Parts Repaired . | . . . Time . | . . . Parts Recycled . | . . . Recycled Matter . | . . . Retrieved Matter . | . . . Retrieved Components . | . . . Parts Scanalyzed . | . . . Part Schematics Acquired . | . . . Parts Damaged . | . . . Bothacking | -11 -10 -10 ------------ Run | Scr Mat Min Used RIF Installer . | . . . Robots Hacked . | . . . Non-combat . | . . . Combat . | . . . Robot Hacks Applied . | . . . Relay Couplers Released . | . . . Fabnet Peak Effective % . | . . . Robots Rewired . | . . . Allies Hacked . | . . . Hacks Repelled . | . . . Allies | -11 -10 -10 -------- Run | Scr Mat Min Total Allies . | . . . Largest Group . | . . . Highest-Rated Group . | . . . Highest-Rated Ally . | . . . Total Orders . | . . . Ally Attacks . | . . . Total Damage . | . . . Kills . | . . . Allies Corrupted . | . . . Allies Melted . | . . . Intel | -11 -10 -10 ------- Run | Scr Mat Min Robot Analysis Total . | . . . Derelict Logs Recovered . | . . . Drone Launches . | . . . Drone Recoveries . | . . . Exploration | -11 -10 -10 ------------- Run | Scr Mat Min Turns Passed 1867 | 48 1625 194 Spaces Moved 1041 | 36 905 100 Core 9 | 7 1 1 Treads 704 | . 605 99 Legs 147 | . 147 . Wheels 181 | 29 152 . Hover . | . . . Flight . | . . . Fastest Speed 50 | 50 90 160 Average Speed 149 | 90 150 164 Slowest Speed 500 | 100 240 500 Overloaded Moves . | . . . Propulsion Burnouts . | . . . Robots Hopped . | . . . Cave-ins Triggered . | . . . Exploration Rate (%) 41 | 3 97 23 Regions Visited 2 Branch Regions 1 Pre-discovered Areas . | . . . Known Exits Taken 1 | . 1 . Unknown Exits Taken 1 | 1 . . Scrap Searched . | . . . Spaces Dug . | . . . Terrain Destroyed 28 | . . 28 Melee . | . . . Projectile . | . . . AOE 28 | . . 28 Terrain Rammed . | . . . Walls Destroyed . | . . . Machines Disabled . | . . . Actions | -11 -10 -10 --------- Run | Scr Mat Min Total 1219 | 51 1053 115 Wait 17 | . 17 . Move 1039 | 35 904 100 Hop . | . . . Pick Up 40 | 10 30 . Fast Attach 1 | . 1 . Attach 15 | 6 7 2 Detach . | . . . Swap 15 | . 13 2 Drop 14 | . 14 . Fire 76 | . 67 9 Melee 2 | . . 2 Ram . | . . . Kick . | . . . Crush . | . . . Escape Stasis . | . . . Rewire . | . . . Trap . | . . . Miscellaneous . | . . . Route ------- -11/Scrapyard -10/Materials (discovered 4 exits: [*Mat x3] / *Min) -10/Mines History --------- Turn | Location | Event 12 | -11/Scrapyard | Discovered new exit (range 15) 49 | -11/Scrapyard | Entered Materials 66 | -10/Materials | Identified exit to Mines 301 | -10/Materials | Build established: Mutant 596 | -10/Materials | Discovered new exit (range 5) 673 | -10/Materials | Central database locked down 957 | -10/Materials | Discovered new exit (range 16) 969 | -10/Materials | Core integrity fell below 50% 1307 | -10/Materials | Discovered new exit (range 16) 1674 | -10/Materials | Entered Mines 1786 | -10/Mines | Assembled infested the area 1852 | -10/Mines | Core integrity fell below 20% 1868 | -10/Mines | Destroyed by as-12832 with Assembled Rifle Last Messages --------------- 01789_ K-01 Serf collects debris. 01838_ as-55089 destroyed. 01841_ as-89184 destroyed. 01841_ as-45158 destroyed. 01844_ Lgt. Assault Rifle destroyed. 01847_ Lgt. Treads destroyed. 01847_ K-01 Serf collects debris. 01854_ Particle Gun destroyed. 01856_ The unstable cave ceiling collapses. 01856_ Destroyed Asb. Hover Unit. 01857_ The unstable cave ceiling collapses. 01857_ Assault Rifle destroyed. 01857_ K-01 Serf collects debris. 01859_ The unstable cave ceiling collapses. 01860_ K-01 Serf collects debris. 01862_ as-45965 destroyed. 01863_ K-01 Serf collects debris. 01865_ The unstable cave ceiling collapses. 01866_ Lgt. Treads destroyed. 01867_ K-01 Serf collects debris. Map ----- +----------------------------------------------------+ | ??????????????????? ## #?? | | ?????????????? ??? ??? | | ????????????? ? #??? | | ?????????????? """ #??? | | ???????????????# """ #??? | | ????????????????? """ #???? | | ??????????????????? #????? | | ????????????????????? #?????? | | ????????????########### ##????? | | ????????????# ##???? | | ????????????# #???? | | ???????###### ########## ##???? | | ???????# #????????## #????? | | ???????# #?????????# #????? | | ???????# ################# #????? | | ??????## ##??# #????? | | ?????## #??# ######## ##????? | | ????## #??# #??????# #?????? | | ????# #??# #??????# #?????? | | ????# ##??# #??????# #?????? | | ????# #??# #??????# #?????? | | ????## #??# #??????# #?????? | | ??####### #?## #??????# #?????? | | ??# #?# ### ######?# #?????? | | ?## #?# # ## #?????? | | ## ###### ## #@#?????? | | # ##??## % a#?????? | | #### % ###?????? | | ## ## ###???????? | | #?## % ### ??????????? | | ???## ??#???????????? | | ?????## ##???????????????? | | #???????#### ##????????????????? | | ???????????## ##????????????????? | | ????????????# ##???????????????? | | ????????????# #???????????????? | | ????????????# #???????????????? | | ????????????#####???????????????? | | ????????????????????????????????? | | ????????????????????????????????? | | ????????????????????????????????? | | ????????????????????????????????? | | | | | | | | | | | | | | | | | +----------------------------------------------------+ Best States ------------- Heat Dissipation 39 Energy Generation 10 Energy Capacity 250 Matter Stores 300 Matter Capacity 300 Sight Range 16 Terrain Scan Density 10 Evasion (%) 55 Recoil Reduction 2 Item Schematics ----------------- ECM Suite | -10/Materials | Hacked Robot Schematics ------------------ None Fabricated ------------ Nothing Alien Tech Used ----------------- None Achievements -------------- None Challenges ------------ None Game ------ Seed CoreLightLaser Manual? 0 Play Time 00:18:15 Cumulative 93.7 hours Start 2022.03.24 @ 00:52:46 End 2022.03.25 @ 11:43:49 Sessions 3 Manual Loads 0 Difficulty Rogue Special Mode None Game No. 67 Rogue 67 Adventurer 0 Explorer 0 Win Type - Total 0 Types 0/0/0/0/0/0/0/0/0 Lore% 24 Gallery% 44 Achievement% 34 Wizard Run 0 Options --------- ASCII 0 Keyboard 0 Movement Mouse Keybinds 0 Fullscreen 2 Font 18/SmallcapsGlow Map View 76x50 Tactical HUD 1 Map Filters NONE Filters NONE Steam 1 RUN: c5b96ea3-bc7c-4889-a301-7695337e7bf2